bitfinex/quotes_BTCUSD_20240627
["timestamp","ask_amount","ask_price","bid_price","bid_amount"]
[1719486722741,0.22099645,61281.0,61280.0,2.63729771]
[1719486723368,0.22099645,61281.0,61280.0,2.63229771]
[1719486724204,0.12559645,61281.0,61280.0,2.78863669]
[1719486724663,0.12559645,61281.0,61280.0,2.80356069]
[1719486725084,0.12643645,61281.0,61280.0,2.80356069]
[1719486725539,0.12643645,61281.0,61280.0,2.78956069]
[1719486725754,0.02643645,61281.0,61280.0,2.80356069]
[1719486726170,0.02643645,61281.0,61280.0,2.45162171]
[1719486726171,0.18961845,61281.0,61280.0,2.45162171]
[1719486726398,0.18961845,61281.0,61280.0,2.43162171]
[1719486726638,0.28961845,61281.0,61280.0,2.45962171]
[1719486726866,0.28961845,61281.0,61280.0,2.47962171]
[1719486727073,0.28961845,61281.0,61280.0,2.53972171]
[1719486728539,0.38501845,61281.0,61280.0,2.53972171]
[1719486728908,0.38501845,61281.0,61280.0,2.55372171]
[1719486729109,0.22183645,61281.0,61280.0,2.53972171]
[1719486729315,0.22183645,61281.0,61280.0,2.55372171]
[1719486729525,0.12643645,61281.0,61280.0,2.71606069]
[1719486729733,0.19624,61281.0,61280.0,2.81146069]
[1719486730236,0.19624,61281.0,61280.0,2.82546069]
[1719486731098,0.09624,61281.0,61280.0,2.82546069]
[1719486731653,0.09624,61281.0,61280.0,2.81146069]
[1719486732340,0.09624,61281.0,61280.0,2.82546069]
[1719486733321,0.09624,61281.0,61280.0,2.81146069]
[1719486733765,0.09624,61281.0,61280.0,2.82546069]
[1719486738916,0.585787,61281.0,61280.0,2.45962171]
[1719486739120,0.685787,61281.0,61280.0,2.45962171]
[1719486740387,0.590387,61281.0,61280.0,2.47962171]
[1719486740593,1.012152,61281.0,61280.0,2.45962171]
[1719486741580,1.012152,61281.0,61280.0,2.44562171]
[1719486742198,1.012152,61281.0,61280.0,2.43162171]
[1719486742542,1.012152,61281.0,61280.0,2.44562171]
[1719486742760,1.012152,61281.0,61280.0,2.45962171]
[1719486742885,2.010929,61281.0,61280.0,2.45962171]
[1719486743296,1.896908,61281.0,61280.0,2.45962171]
[1719486743697,1.696908,61281.0,61280.0,2.45962171]
[1719486744516,2.023273,61281.0,61280.0,2.45962171]
[1719486744715,2.431038,61281.0,61280.0,2.44562171]
[1719486744945,2.431038,61281.0,61280.0,2.43162171]
[1719486744946,2.59337698,61281.0,61280.0,2.43162171]
[1719486745171,2.75571069,61281.0,61280.0,2.43162171]
[1719486745589,2.75571069,61281.0,61280.0,2.44562171]
[1719486746205,2.75571069,61281.0,61280.0,2.43162171]
[1719486746700,2.75771069,61281.0,61280.0,2.43162171]
[1719486746903,2.75771069,61281.0,61280.0,2.44562171]
[1719486747326,2.59537698,61281.0,61280.0,2.43162171]
[1719486747663,2.59737698,61281.0,61280.0,2.43162171]
[1719486748069,2.59537698,61281.0,61280.0,2.43162171]
[1719486748478,2.59737698,61281.0,61280.0,2.43162171]
[1719486751764,1.91262098,61281.0,61280.0,2.43162171]
[1719486752210,3.10654498,61281.0,61280.0,2.43162171]
[1719486752759,3.10454498,61281.0,61280.0,2.42357547]
[1719486753165,3.10654498,61281.0,61280.0,2.43320796]
[1719486754162,3.13604816,61281.0,61280.0,2.43320796]
[1719486754547,3.13404816,61281.0,61280.0,2.43320796]
[1719486754962,3.13604816,61281.0,61280.0,2.43320796]
[1719486756408,3.13404816,61281.0,61280.0,2.43320796]
[1719486758103,3.13604816,61281.0,61280.0,2.43320796]
[1719486758710,3.13404816,61281.0,61280.0,2.43320796]
[1719486758911,3.13604816,61281.0,61280.0,2.43320796]
[1719486761223,2.79841204,61281.0,61280.0,2.43320796]
[1719486761637,2.79841204,61281.0,61280.0,2.42357547]
[1719486762016,2.79841204,61281.0,61280.0,2.43321252]
[1719486763581,1.96387404,61281.0,61280.0,2.43321252]
[1719486763751,2.05927404,61281.0,61280.0,2.43321252]
[1719486764170,1.60800586,61281.0,61280.0,2.43321252]
[1719486764394,1.03776186,61281.0,61280.0,2.63551252]
[1719486764569,1.03576186,61281.0,61280.0,2.63551252]
[1719486764976,1.03376186,61281.0,61280.0,2.65851252]
[1719486765175,1.03376186,61281.0,61280.0,2.63851252]
[1719486765377,1.03376186,61281.0,61280.0,2.63551252]
[1719486765576,0.38103186,61281.0,61280.0,2.65551252]
[1719486765752,0.38103186,61281.0,61280.0,2.65951252]
[1719486765753,0.1954,61281.0,61280.0,2.65951252]
[1719486766163,0.358582,61281.0,61280.0,2.65951252]
[1719486766436,0.358582,61281.0,61280.0,2.63951252]
[1719486767217,0.358582,61281.0,61280.0,2.64251252]
[1719486767572,0.358582,61281.0,61280.0,2.63951252]
[1719486767991,0.358582,61281.0,61280.0,2.64951252]
[1719486768211,0.684947,61281.0,61280.0,2.64951252]
[1719486768414,0.684947,61281.0,61280.0,2.65651252]
[1719486768618,1.337677,61281.0,61280.0,2.65651252]
[1719486768790,1.337677,61281.0,61280.0,2.45421252]
[1719486769173,1.337677,61281.0,61280.0,2.44721252]
[1719486769413,1.337677,61281.0,61280.0,2.46121252]
[1719486769926,1.69858503,61281.0,61280.0,2.46121252]
[1719486770137,1.77978503,61281.0,61280.0,2.44721252]
[1719486770341,5.65797503,61281.0,61280.0,2.44721252]
[1719486770753,5.50059803,61281.0,61280.0,2.43757547]
[1719486770951,5.50059803,61281.0,61280.0,2.42357547]
[1719486771175,5.44754003,61281.0,61280.0,2.43320157]
[1719486771760,5.44754003,61281.0,61280.0,2.44720157]
[1719486772190,5.44754003,61281.0,61280.0,2.44020157]
[1719486772615,5.44754003,61281.0,61280.0,2.43320157]
[1719486772820,5.32555103,61281.0,61280.0,2.43320157]
[1719486773446,5.32555103,61281.0,61280.0,2.42357547]
[1719486773447,4.97040903,61281.0,61280.0,2.42357547]
[1719486773651,2.048531,61281.0,61280.0,2.42357547]
[1719486773879,2.042451,61281.0,61280.0,2.42357547]
[1719486774103,2.042451,61281.0,61280.0,2.43320766]
[1719486774323,1.620686,61281.0,61280.0,2.43320766]
[1719486774527,1.57655,61281.0,61280.0,2.43320766]
[1719486774731,1.67395,61281.0,61280.0,2.43320766]
[1719486775139,1.67195,61281.0,61280.0,2.43320766]
[1719486775484,1.67395,61281.0,61280.0,2.43320766]
[1719486775715,1.67195,61281.0,61280.0,2.43320766]
[1719486776129,1.67395,61281.0,61280.0,2.43320766]
[1719486776693,1.67195,61281.0,61280.0,2.43320766]
[1719486778337,1.67395,61281.0,61280.0,2.43320766]
[1719486779199,1.67195,61281.0,61280.0,2.43320766]
[1719486779410,1.67395,61281.0,61280.0,2.43320766]
[1719486781961,1.57855,61281.0,61280.0,2.43320766]
[1719486782205,1.67395,61281.0,61280.0,2.43320766]
[1719486783033,1.57855,61281.0,61280.0,2.43320766]
[1719486783236,1.67395,61281.0,61280.0,2.43320766]
[1719486787735,1.80859,61281.0,61280.0,2.43320766]
[1719486788348,1.80943,61281.0,61280.0,2.43320766]
[1719486788640,1.634259,61281.0,61280.0,2.43320766]
[1719486789463,0.592387,61281.0,61280.0,2.43320766]
[1719486789668,0.687787,61281.0,61280.0,2.61977547]
[1719486790061,0.687787,61281.0,61280.0,2.62940893]
[1719486791293,0.685787,61281.0,61280.0,2.62940893]
[1719486791784,1.012152,61281.0,61280.0,2.63340893]
[1719486792352,1.012152,61281.0,61280.0,2.63840893]
[1719486792745,1.012152,61281.0,61280.0,2.63440893]
[1719486792949,1.012152,61281.0,61280.0,2.43820893]
[1719486794259,1.012152,61281.0,61280.0,2.44420893]
[1719486796737,2.166848,61281.0,61280.0,2.44420893]
[1719486797147,2.166848,61281.0,61280.0,2.43457547]
[1719486797349,2.32918698,61281.0,61280.0,2.43457547]
[1719486797551,2.32918698,61281.0,61280.0,2.43920654]
[1719486797764,2.49407019,61281.0,61280.0,2.43920654]
[1719486797964,2.656401,61281.0,61280.0,2.43920654]
[1719486798649,2.656401,61281.0,61280.0,2.43320654]
[1719486799012,2.79182069,61281.0,61280.0,1.60850654]
[1719486799269,2.78882069,61281.0,61280.0,1.60850654]
[1719486799669,2.79182069,61281.0,61280.0,1.60850654]
[1719486800358,3.11818569,61281.0,61280.0,1.60850654]
[1719486800562,3.31818569,61281.0,61280.0,1.55649679]
[1719486800739,4.11511069,61281.0,61280.0,0.88815679]
[1719486801094,4.11511069,61281.0,61280.0,0.81002572]
[1719486801095,3.91511069,61281.0,61280.0,0.81002572]
[1719486801310,3.91511069,61281.0,61280.0,0.78050972]
[1719486801444,3.91511069,61281.0,61255.0,0.000924]
[1719486801445,1.142743,61256.0,61255.0,0.000924]
[1719486801629,2.376919,61256.0,61255.0,0.000924]
[1719486801829,2.376919,61256.0,61255.0,0.01059999]
[1719486802039,2.376919,61256.0,61255.0,0.000924]
[1719486802660,2.281519,61256.0,61255.0,0.000924]
[1719486803019,2.44385271,61256.0,61255.0,0.000924]
[1719486803582,2.281519,61256.0,61255.0,0.003924]
[1719486803785,2.441509,61256.0,61255.0,0.003924]
[1719486805193,2.076769,61256.0,61255.0,0.003924]
[1719486805399,1.567287,61256.0,61255.0,0.003924]
[1719486806279,1.567287,61256.0,61255.0,0.007924]
[1719486808221,1.050015,61256.0,61255.0,0.202324]
[1719486808423,0.916245,61256.0,61255.0,0.202324]
[1719486809510,1.084315,61256.0,61255.0,0.202324]
[1719486810179,0.916245,61256.0,61255.0,0.202324]
[1719486810558,1.084276,61256.0,61255.0,0.202324]
[1719486812822,1.10894258,61256.0,61255.0,0.202324]
[1719486814129,0.1,61256.0,61255.0,0.202324]
[1719486814343,0.163249,61256.0,61255.0,0.20226222]
[1719486814543,0.263249,61256.0,61255.0,0.21197585]
[1719486815447,0.589747,61256.0,61255.0,0.21197585]
[1719486815623,1.00476487,61256.0,61255.0,0.21197585]
[1719486815842,1.33126287,61256.0,61255.0,0.01757585]
[1719486816084,1.33126287,61256.0,61255.0,0.00786222]
[1719486822784,1.35686452,61256.0,61255.0,0.00786222]
[1719486824048,1.33126287,61256.0,61255.0,0.00786222]
[1719486831375,1.242743,61256.0,61255.0,0.00786222]
[1719486837678,1.569241,61256.0,61255.0,0.00786222]
[1719486837882,1.858451,61256.0,61255.0,0.00786222]
[1719486839763,2.02078998,61256.0,61255.0,0.00786222]
[1719486840974,2.02078998,61256.0,61255.0,0.00486222]
[1719486841138,2.08571463,61256.0,61255.0,0.00086222]
[1719486841535,2.08971463,61256.0,61255.0,0.00086222]
[1719486842393,2.45438355,61256.0,61255.0,0.00086222]
[1719486843074,2.63921263,61256.0,61255.0,0.00086222]
[1719486843701,2.64421263,61256.0,61255.0,0.00086222]
[1719486844431,2.63921263,61256.0,61255.0,0.00086222]
[1719486845375,2.25920447,61256.0,61255.0,0.00086222]
[1719486845583,2.52245347,61256.0,61255.0,0.00086222]
[1719486847424,2.72245347,61256.0,61255.0,0.00086222]
[1719486847873,7.19624447,61256.0,61255.0,0.00086222]
[1719486848645,7.10084447,61256.0,61255.0,0.00086222]
[1719486848861,7.35857818,61256.0,61255.0,0.00086222]
[1719486849251,7.35457818,61256.0,61255.0,0.00086222]
[1719486849982,7.36657818,61256.0,61255.0,0.00186222]
[1719486850151,7.10884447,61256.0,61255.0,0.00186222]
[1719486850348,6.75517747,61256.0,61255.0,0.00186222]
[1719486850873,6.56101747,61256.0,61255.0,0.00286222]
[1719486851317,6.76101747,61256.0,61255.0,0.00286222]
[1719486851527,6.75601747,61256.0,61255.0,0.00186222]
[1719486851692,6.91835118,61256.0,61255.0,0.00186222]
[1719486851893,6.92735118,61256.0,61255.0,0.00286222]
[1719486852101,6.36501747,61256.0,61255.0,0.00286222]
[1719486852390,3.63758747,61256.0,61255.0,0.00286222]
[1719486852598,3.61399947,61256.0,61255.0,0.00286222]
[1719486854287,3.77863256,61256.0,61255.0,0.00286222]
[1719486854482,1.142781,61254.0,61253.0,0.0614164]
[1719486854619,2.92823498,61254.0,61253.0,0.0614164]
[1719486856826,2.94223498,61254.0,61253.0,0.001]
[1719486857382,3.26874398,61254.0,61253.0,0.001]
[1719486857582,3.43107769,61254.0,61253.0,0.001]
[1719486858866,3.43807769,61254.0,61253.0,0.002]
[1719486859810,3.43807769,61254.0,61253.0,0.008074]
[1719486861984,3.50350269,61254.0,61253.0,0.008074]
[1719486864284,3.65410269,61254.0,61253.0,0.008074]
[1719486865319,4.00361169,61254.0,61253.0,1e-08]
[1719486865519,2.48049669,61254.0,61253.0,1e-08]
[1719486866111,1.142928,61246.0,61245.0,0.2222]
[1719486866354,1.43054383,61246.0,61245.0,0.2222]
[1719486867550,1.43454383,61246.0,61245.0,0.2222]
[1719486870516,1.34227784,61246.0,61245.0,0.2222]
[1719486870767,1.34627784,61246.0,61245.0,0.2222]
[1719486874272,0.92432684,61246.0,61245.0,0.2222]
[1719486874681,0.9252605,61246.0,61245.0,0.2222]
[1719486877440,1.0206605,61246.0,61245.0,0.2222]
[1719486879103,1.4513447,61246.0,61245.0,0.2222]
[1719486880320,1.47600911,61246.0,61245.0,0.2222]
[1719486883605,1.37187591,61246.0,61245.0,0.2222]
[1719486884598,1.3974826,61246.0,61245.0,0.2222]
[1719486885483,1.37187591,61246.0,61245.0,0.2222]
[1719486886782,1.37187591,61246.0,61245.0,0.223124]
[1719486887407,1.37271591,61246.0,61245.0,0.223124]
[1719486893956,2.20622946,61246.0,61245.0,0.223124]
[1719486894134,2.04119391,61246.0,61245.0,0.223124]
[1719486894351,2.2062312,61246.0,61245.0,0.223124]
[1719486894555,2.04119391,61246.0,61245.0,0.223124]
[1719486895535,1.81175991,61246.0,61245.0,0.223124]
[1719486897509,1.71635991,61246.0,61245.0,0.223124]
[1719486897708,1.81175991,61246.0,61245.0,0.223124]
[1719486898858,1.32105041,61246.0,61245.0,0.223124]
[1719486899163,1.48032541,61246.0,61245.0,0.223124]
[1719486899559,0.56854841,61246.0,61245.0,0.243124]
[1719486899861,0.10484,61246.0,61245.0,0.243124]
[1719486900076,0.10484,61246.0,61245.0,0.41904294]
[1719486900077,0.00484,61246.0,61245.0,0.41904294]
[1719486900259,0.00484,61246.0,61245.0,0.47048723]
[1719486900484,0.1,61254.0,61253.0,0.01]
[1719486900669,0.00084,61256.0,61255.0,0.2339]
[1719486901096,0.00084,61256.0,61255.0,0.24743859]
[1719486901494,0.00084,61256.0,61255.0,0.34283859]
[1719486901902,0.00084,61256.0,61255.0,0.24743859]
[1719486902108,0.00084,61256.0,61255.0,0.22743859]
[1719486902311,0.164089,61256.0,61255.0,0.22743859]
[1719486902517,0.685987,61256.0,61255.0,0.11053859]
[1719486902722,1.012485,61256.0,61255.0,0.097]
[1719486902960,0.16327,61248.0,61247.0,0.02]
[1719486903371,0.163275,61246.0,61245.0,0.000924]
[1719486903579,0.489826,61246.0,61245.0,0.000924]
[1719486903801,0.816377,61246.0,61245.0,0.000924]
[1719486904004,0.816377,61246.0,61245.0,0.102524]
[1719486904005,1.011777,61246.0,61245.0,0.102524]
[1719486904421,0.916377,61246.0,61245.0,0.102524]
[1719486905564,0.916377,61246.0,61245.0,0.223424]
[1719486906608,0.589826,61246.0,61245.0,0.223424]
[1719486906819,0.589826,61246.0,61245.0,0.252424]
[1719486906820,0.101,61246.0,61245.0,0.252424]
[1719486906989,0.001,61246.0,61245.0,0.26595264]
[1719486907193,0.001,61246.0,61245.0,0.3020879]
[1719486907392,0.001,61246.0,61245.0,0.3974879]
[1719486907603,0.002,61246.0,61245.0,0.3974879]
[1719486908015,0.002,61246.0,61245.0,0.26595264]
[1719486908231,0.1,61249.0,61248.0,0.02]
[1719486908440,0.1,61249.0,61248.0,0.03351965]
[1719486909275,0.1,61249.0,61248.0,0.24941965]
[1719486909490,0.16326,61252.0,61251.0,0.02]
[1719486909832,0.16326,61252.0,61251.0,0.03351067]
[1719486910262,0.589779,61252.0,61251.0,0.03351067]
[1719486910437,0.589779,61252.0,61251.0,0.01351067]
[1719486910636,0.1,61252.0,61250.0,0.2369]
[1719486910832,0.1,61251.0,61250.0,0.2369]
[1719486913188,0.1,61252.0,61251.0,0.02]
[1719486913667,0.1,61253.0,61252.0,0.02]
[1719486913874,0.1,61254.0,61253.0,0.02]
[1719486914296,0.1,61254.0,61252.0,0.02]
[1719486914855,0.163259,61252.0,61251.0,0.2251]
[1719486915212,0.589778,61252.0,61251.0,0.2251]
[1719486915419,0.589778,61252.0,61251.0,0.2271]
[1719486915615,0.589778,61252.0,61251.0,0.2471]
[1719486915616,0.263259,61252.0,61251.0,0.2471]
[1719486915815,0.263259,61252.0,61251.0,0.2271]
[1719486917628,0.263259,61252.0,61251.0,0.24061921]
[1719486920287,0.1,61252.0,61251.0,0.44702011]
[1719486920478,0.00084,61254.0,61253.0,0.02]
[1719486920681,0.00084,61254.0,61253.0,0.42951696]
[1719486921310,0.00084,61254.0,61253.0,0.43951696]
[1719486921522,0.00084,61256.0,61255.0,0.420251]
[1719486921716,0.00084,61256.0,61255.0,0.90909298]
[1719486922073,0.00084,61256.0,61255.0,1.21797625]
[1719486922273,0.02560669,61264.0,61263.0,0.16323]
[1719486922388,0.02560669,61264.0,61263.0,0.66006898]
[1719486922601,0.02560669,61264.0,61263.0,0.68352829]
[1719486923826,0.02560669,61264.0,61263.0,1.20998929]
[1719486924031,0.00084,61281.0,61263.0,1.20998929]
[1719486924032,0.00084,61281.0,61280.0,0.01]
[1719486924237,0.00084,61281.0,61280.0,0.3326]
[1719486924432,0.00084,61281.0,61280.0,0.5083118]
[1719486924628,0.00084,61281.0,61280.0,0.4129118]
[1719486926051,0.00084,61281.0,61280.0,0.4169118]
[1719486930572,0.00084,61281.0,61280.0,0.4199118]
[1719486936902,0.00084,61281.0,61280.0,0.04037282]
[1719486938635,0.00084,61281.0,61280.0,0.03838151]
[1719486938842,0.00084,61281.0,61280.0,0.06514879]
[1719486941025,0.00084,61281.0,61280.0,0.0471401]
[1719486942223,0.00084,61281.0,61280.0,0.02037282]
[1719486946169,0.00084,61281.0,61280.0,0.03838151]
[1719486947283,0.00084,61281.0,61280.0,0.02037282]
[1719486947459,0.00084,61281.0,61280.0,0.03838151]
[1719486948244,0.00084,61281.0,61280.0,0.20072049]
[1719486948446,0.00084,61281.0,61280.0,0.47275254]
[1719486949628,0.00084,61281.0,61280.0,0.60841096]
[1719486949826,0.00084,61281.0,61280.0,0.60683755]
[1719486950254,0.00084,61281.0,61280.0,0.60683396]
[1719486950639,0.00084,61281.0,61280.0,0.60683481]
[1719486951839,0.00084,61281.0,61280.0,0.58882612]
[1719486952257,0.00084,61281.0,61280.0,0.60775881]
[1719486953278,0.00084,61281.0,61280.0,0.55442676]
[1719486953441,0.00084,61281.0,61280.0,0.55443066]
[1719486954395,0.00084,61281.0,61280.0,0.53642197]
[1719486954766,0.326306,61293.0,61280.0,0.53642197]
[1719486954767,0.29605157,61293.0,61280.0,0.53642197]
[1719486954971,1.425352,61292.0,61291.0,0.11330869]
[1719486955174,0.00839,61294.0,61293.0,0.01800869]
[1719486955892,0.00839,61294.0,61293.0,0.03094097]
[1719486956974,0.00839,61294.0,61293.0,0.26144097]
[1719486957129,0.00839,61294.0,61293.0,0.29844135]
[1719486957332,0.02139,61294.0,61293.0,0.29944135]
[1719486957938,0.02139,61294.0,61293.0,0.26244097]
[1719486958904,0.02139,61294.0,61293.0,0.42477995]
[1719486959808,0.02139,61294.0,61293.0,0.92323095]
[1719486960013,0.00839,61294.0,61293.0,1.05885318]
[1719486960188,0.00839,61294.0,61293.0,1.24953195]
[1719486960386,0.00939,61294.0,61293.0,1.5961436]
[1719486960589,0.00839,61294.0,61293.0,1.5851436]
[1719486960812,0.00839,61294.0,61293.0,1.3861436]
[1719486961011,0.00939,61294.0,61293.0,1.4001436]
[1719486961267,0.00939,61294.0,61293.0,1.6001436]
[1719486961468,0.00939,61294.0,61293.0,1.4001436]
[1719486961672,0.00939,61294.0,61293.0,2.1494446]
[1719486962022,0.00939,61294.0,61293.0,1.9494446]
[1719486962227,0.00939,61294.0,61293.0,2.04473589]
[1719486962588,0.00939,61294.0,61293.0,2.18743589]
[1719486962832,0.00939,61294.0,61293.0,2.03813489]
[1719486963238,0.00939,61294.0,61293.0,2.38743589]
[1719486964015,0.00939,61294.0,61293.0,2.58743589]
[1719486964222,0.03397939,61313.0,61307.0,0.42482169]
[1719486964500,0.03397939,61313.0,61307.0,0.82516067]
[1719486964620,0.03397939,61313.0,61307.0,0.8379337]
[1719486964826,0.03397939,61313.0,61307.0,0.6748207]
[1719486965047,0.03397939,61313.0,61307.0,0.8379337]
[1719486965486,0.03397939,61313.0,61307.0,1.1641607]
[1719486965687,0.03397939,61313.0,61307.0,0.8379337]
[1719486965888,0.03397939,61313.0,61307.0,0.5999337]
[1719486966067,0.03397939,61313.0,61307.0,0.8379337]
[1719486966747,0.03397939,61313.0,61307.0,0.4268207]
[1719486967585,0.03397939,61313.0,61307.0,0.4408207]
[1719486967823,0.03397939,61313.0,61307.0,0.4268207]
[1719486968185,0.03397939,61313.0,61307.0,0.4408207]
[1719486968631,0.03397939,61313.0,61307.0,0.4268207]
[1719486969038,0.03397939,61313.0,61307.0,0.4548207]
[1719486969637,0.03397939,61313.0,61307.0,0.4408207]
[1719486970547,0.03397939,61313.0,61307.0,0.4508207]
[1719486970960,0.03397939,61313.0,61307.0,0.4408207]
[1719486971150,0.03397939,61313.0,61307.0,0.4508207]
[1719486971713,0.00839,61313.0,61307.0,0.4268207]
[1719486972099,0.00839,61313.0,61307.0,0.4408207]
[1719486972859,0.00839,61313.0,61307.0,0.4548207]
[1719486973056,0.00839,61313.0,61307.0,0.4408207]
[1719486973803,0.00839,61313.0,61307.0,0.4548207]
[1719486975226,0.00839,61313.0,61307.0,0.4648207]
[1719486975605,0.00839,61313.0,61307.0,0.4548207]
[1719486976206,0.19999,61313.0,61307.0,0.4548207]
[1719486976587,0.19999,61313.0,61307.0,0.3237207]
[1719486976970,0.19999,61313.0,61307.0,0.2211207]
[1719486977174,0.00839,61313.0,61307.0,0.2211207]
[1719486977350,0.08599,61313.0,61307.0,0.2211207]
[1719486977565,0.08599,61313.0,61307.0,0.1931207]
[1719486977926,0.00839,61313.0,61307.0,0.1931207]
[1719486978331,0.00839,61313.0,61307.0,0.2071207]
[1719486979862,0.00839,61313.0,61307.0,0.04077303]
[1719486979863,0.2855,61308.0,61307.0,0.04077303]
[1719486980026,0.19999,61308.0,61307.0,0.04077303]
[1719486980330,0.19999,61308.0,61307.0,0.028]
[1719486980560,0.19999,61308.0,61307.0,0.014]
[1719486980561,0.00839,61308.0,61307.0,0.014]
[1719486980938,0.00839,61308.0,61307.0,0.028]
[1719486981511,0.00839,61308.0,61307.0,0.014]
[1719486981698,0.1715,61308.0,61307.0,0.014]
[1719486982099,0.1715,61308.0,61306.0,0.01800869]
[1719486982452,0.1715,61308.0,61307.0,0.01271605]
[1719486982810,0.1715,61308.0,61306.0,0.18034767]
[1719486983018,0.1715,61308.0,61307.0,0.014]
[1719486983219,0.1715,61308.0,61307.0,0.04472474]
[1719486983422,0.1715,61308.0,61307.0,0.03200869]
[1719486983767,0.1715,61308.0,61307.0,0.04600869]
[1719486984172,0.1715,61308.0,61307.0,0.04071605]
[1719486984748,0.497721,61308.0,61307.0,0.04071605]
[1719486985204,0.497721,61308.0,61307.0,0.028]
[1719486985905,0.497721,61308.0,61307.0,0.04600869]
[1719486986381,0.497721,61308.0,61307.0,0.028]
[1719486986613,0.497721,61308.0,61307.0,0.04600869]
[1719486986792,0.497721,61308.0,61307.0,0.028]
[1719486987326,0.497721,61308.0,61307.0,0.04600869]
[1719486987931,0.497721,61308.0,61307.0,0.03200869]
[1719486990607,0.1715,61308.0,61307.0,0.03200869]
[1719486991014,0.00839,61308.0,61307.0,0.03200869]
[1719486991759,0.00839,61308.0,61307.0,0.04473295]
[1719486993035,0.00839,61308.0,61307.0,0.23104117]
[1719486993237,0.00839,61308.0,61307.0,0.34637912]
[1719486993441,0.00839,61308.0,61307.0,0.32567193]
[1719486994082,0.00839,61308.0,61307.0,0.33967193]
[1719486994719,0.00839,61308.0,61307.0,0.34967193]
[1719486994935,0.00839,61308.0,61307.0,0.33967193]
[1719486995145,0.00839,61308.0,61307.0,0.34967193]
[1719486997344,0.00839,61308.0,61307.0,0.33967193]
[1719486998128,0.00839,61308.0,61307.0,0.60638493]
[1719486998471,0.00839,61308.0,61307.0,0.93261193]
[1719487000321,0.00839,61308.0,61307.0,1.45883893]
[1719487000523,0.00839,61308.0,61307.0,1.69683893]
[1719487000721,0.00839,61308.0,61307.0,1.55403893]
[1719487001144,0.00839,61308.0,61307.0,1.13261193]
[1719487001339,0.00839,61308.0,61307.0,1.22781193]
[1719487002078,0.00839,61308.0,61307.0,1.55403893]
[1719487002216,0.00839,61308.0,61307.0,1.22781193]
[1719487002630,0.00839,61308.0,61307.0,1.37051193]
[1719487002858,0.03788487,61335.0,61330.0,3.82800561]
[1719487003059,0.18613573,61331.0,61330.0,3.82800561]
[1719487003258,0.51223473,61331.0,61330.0,3.8406222]
[1719487003476,0.65814876,61331.0,61330.0,3.8406222]
[1719487004019,0.33214811,61331.0,61330.0,3.8406222]
[1719487004390,0.18613573,61331.0,61330.0,3.8406222]
[1719487004593,0.16909911,61331.0,61330.0,3.8406222]
[1719487004793,0.33215747,61331.0,61330.0,3.8406222]
[1719487005020,0.43215747,61331.0,61330.0,3.8406222]
[1719487005175,0.12308673,61331.0,61330.0,3.85863089]
[1719487005375,0.163032,61338.0,61335.0,0.01800869]
[1719487005582,0.326054,61340.0,61335.0,0.01800869]
[1719487005583,0.163033,61337.0,61336.0,0.01259395]
[1719487005789,0.326054,61340.0,61334.0,0.01800869]
[1719487006183,0.14602174,61341.0,61335.0,0.01259694]
[1719487006308,0.14602174,61343.0,61332.0,0.01800869]
[1719487006516,0.326024,61346.0,61332.0,0.01800869]
[1719487006517,0.14602174,61342.0,61336.0,0.01800869]
[1719487006714,0.16303,61339.0,61337.0,0.01259097]
[1719487006945,0.16303,61339.0,61331.0,0.2118]
[1719487006946,0.16303,61339.0,61335.0,0.01800869]
[1719487007149,0.1,61338.0,61336.0,0.01259395]
[1719487007322,0.1,61338.0,61335.0,0.01800869]
[1719487007519,0.1,61338.0,61336.0,0.01259395]
[1719487007751,0.263031,61338.0,61334.0,0.01900869]
[1719487007956,0.263031,61338.0,61335.0,0.03060563]
[1719487009309,0.163035,61337.0,61335.0,0.03060563]
[1719487009484,0.1,61336.0,61335.0,0.03060563]
[1719487010105,0.263036,61336.0,61335.0,0.03060563]
[1719487011561,0.589108,61336.0,61335.0,0.01259694]
[1719487011787,0.163043,61334.0,61331.0,0.01800869]
[1719487011985,0.1,61333.0,61332.0,0.01260591]
[1719487012396,0.263044,61333.0,61330.0,3.8460143]
[1719487012575,0.263044,61333.0,61331.0,0.01260889]
[1719487012975,0.263044,61333.0,61331.0,0.03061758]
[1719487014372,1.14332031,61332.0,61331.0,0.01260889]
[1719487014581,2.08506931,61332.0,61331.0,0.01260889]
[1719487014787,2.18506931,61332.0,61331.0,0.01260889]
[1719487014955,1.14333731,61331.0,61330.0,3.82800561]
[1719487015164,2.38821931,61331.0,61330.0,3.82800561]
[1719487015506,2.55055302,61331.0,61330.0,3.82800561]
[1719487015714,2.38821931,61331.0,61330.0,3.82800561]
[1719487016512,2.38821931,61331.0,61330.0,3.83292961]
[1719487016742,2.386228,61331.0,61330.0,3.84349096]
[1719487017314,2.386228,61331.0,61330.0,3.84749096]
[1719487018145,2.38821931,61331.0,61330.0,3.84749096]
[1719487018917,2.42185119,61331.0,61330.0,3.84349096]
[1719487020263,2.42185119,61331.0,61330.0,3.83949096]
[1719487020666,2.95221831,61331.0,61330.0,3.83949096]
[1719487022791,3.09800434,61331.0,61330.0,3.83949096]
[1719487022986,1.95312234,61331.0,61330.0,3.83949096]
[1719487023245,4.55277065,61331.0,61330.0,3.83949096]
[1719487023444,4.40701229,61331.0,61330.0,3.83949096]
[1719487023675,4.40701229,61331.0,61330.0,3.82892961]
[1719487024000,4.43336206,61331.0,61330.0,3.83584565]
[1719487024201,4.98246106,61331.0,61330.0,3.83584565]
[1719487024423,4.75411998,61331.0,61330.0,3.83584565]
[1719487024623,5.16421129,61331.0,61330.0,3.81161724]
[1719487024849,5.58839029,61331.0,61330.0,3.75760724]
[1719487025230,5.750724,61331.0,61330.0,3.69616725]
[1719487025611,5.79059163,61331.0,61330.0,3.69616725]
[1719487026247,5.79059163,61331.0,61330.0,3.66516725]
[1719487026412,6.16269163,61331.0,61330.0,3.56644127]
[1719487026611,6.66269163,61331.0,61330.0,2.21880127]
[1719487026813,6.66269163,61331.0,61330.0,2.17203381]
[1719487027026,6.66269163,61331.0,61330.0,2.16030146]
[1719487027650,6.66269163,61331.0,61330.0,2.15085641]
[1719487028045,6.72375331,61331.0,61330.0,2.14275275]
[1719487028247,6.72375331,61331.0,61330.0,2.10575275]
[1719487028456,6.72375331,61331.0,61330.0,2.08473332]
[1719487028663,6.48585331,61331.0,61330.0,2.08473332]
[1719487028885,6.3235196,61331.0,61330.0,2.07563358]